[Event "Fagernes Chess Open 2024"]
[Site "Fagernes"]
[Date "2024.03.29"]
[Round "7.8"]
[White "Andersen, Dag"]
[Black "Shehzad, Alina"]
[Result "1-0"]
[ECO "D35"]
[WhiteElo "1899"]
[BlackElo "1670"]
[Annotator "NA RC"]
[PlyCount "51"]
[EventDate "2024.03.25"]
[EventType "swiss"]
[EventCountry "NOR"]
[SourceTitle "playchess.com"]
[Source "ChessBase"]
[SourceQuality "1"]
[TimeControl "40/6000+30:2400+30"]

1. d4 {[%emt 0:00:30]} d5 {[%emt 0:00:41]} 2. c4 {[%emt 0:00:11]} e6 {[%emt 0:00:15]} 3. Nc3 {[%emt 0:00:08]} Be7 {[%emt 0:00:24]} 4. cxd5 {[%emt 0:00:53]} exd5 {[%emt 0:00:13]} 5. Bf4 {[%emt 0:00:10]} Nf6 {[%emt 0:01:06]} 6. e3 {[%emt 0:01:54]} O-O {[%emt 0:00:14]} 7. Bd3 {[%emt 0:00:12]} Nbd7 {[%emt 0:03:13] D35: Queen's Gambit Declined: Exchange Variation.} 8. Rc1 {[%emt 0:00:34]} c5 {[%emt 0:02:01]} 9. Nge2 {[%emt 0:03:52]} a6 {[%emt 0:02:34]} 10. O-O {[%emt 0:00:54]} b5 {[%emt 0:00:27]} 11. dxc5 {[%emt 0:02:42]} Nxc5 {[%emt 0:00:43]} 12. Bb1 {[%emt 0:00:39]} Bb7 {[%emt 0:03:32]} 13. Nd4 {[%emt 0:00:59]} Bd6 {[%emt 0:13:17]} 14. Nce2 {[%emt 0:03:58]} Rc8 {[%emt 0:11:16]} 15. Bxd6 {[%emt 0:02:25]} Qxd6 {[%emt 0:00:54]} 16. Nf5 {[%emt 0:00:55]} Qd7 {[%emt 0:04:16]} 17. Ned4 {[%emt 0:03:09]} Ne6 {[%emt 0:03:35]} 18. Rxc8 {[%emt 0:09:01]} Rxc8 {[%emt 0:01:34]} 19. h4 $11 {[%emt 0:01:18]} g6 {[%emt 0:23:28]} 20. Ng3 {[%emt 0:10:57]} Kg7 {[%emt 0:05:59]} 21. h5 {[%emt 0:08:47]} Nxd4 {[%emt 0:05:34]} 22. Qxd4 {[%emt 0:03:14]} Rc4 {[%emt 0:01:04]} 23. h6+ {[%emt 0:02:17]} Kxh6 {[%emt 0:12:18]} 24. Qxf6 {[%emt 0:00:21]} d4 {[%emt 0:00:34]} 25. Nf5+ {[%emt 0:02:01]} Kh5 {[%emt 0:01:56]} 26. Qh4# {[%emt 0:00:09]} 1-0

[Event "Fagernes Chess Open 2024"]
[Site "Fagernes"]
[Date "2024.03.29"]
[Round "7.9"]
[White "Spanton, Tim R"]
[Black "Skogholt, Steinar Dieseth"]
[Result "1/2-1/2"]
[ECO "D00"]
[WhiteElo "1876"]
[BlackElo "1611"]
[Annotator "NA RC"]
[PlyCount "137"]
[EventDate "2024.03.25"]
[EventType "swiss"]
[EventCountry "NOR"]
[SourceTitle "playchess.com"]
[Source "ChessBase"]
[SourceQuality "1"]
[TimeControl "40/6000+30:2400+30"]

1. Nc3 {[%emt 0:00:03]} d5 {[%emt 0:01:31]} 2. d4 {[%emt 0:00:06]} h6 {[%emt 0:00:49]} 3. e4 {[%emt 0:03:06]} dxe4 {[%emt 0:02:08]} 4. Nxe4 {[%emt 0:00:15]} Nf6 {[%emt 0:01:40]} 5. Nxf6+ {[%emt 0:01:03]} exf6 {[%emt 0:00:13]} 6. Nf3 {[%emt 0:01:43] D00: 1 d4 d5: Unusual lines.} Bd6 {[%emt 0:01:41]} 7. Bd3 {[%emt 0:01:03]} O-O {[%emt 0:03:17]} 8. O-O {[%emt 0:00:18]} Bg4 {[%emt 0:02:41]} 9. h3 {[%emt 0:00:52]} Bh5 {[%emt 0:01:06]} 10. c3 {[%emt 0:00:23]} c6 {[%emt 0:01:47]} 11. g4 {[%emt 0:00:54]} Bg6 {[%emt 0:00:42]} 12. Bxg6 {[%emt 0:00:12]} fxg6 {[%emt 0:00:10]} 13. Qb3+ {[%emt 0:00:18]} Rf7 {[%emt 0:00:35]} 14. Nh4 {[%emt 0:01:21]} f5 {[%emt 0:07:56]} 15. gxf5 {[%emt 0:03:11]} gxf5 {[%emt 0:03:53]} 16. Nxf5 {[%emt 0:00:24]} Qf6 {[%emt 0:01:43]} 17. Nxd6 {[%emt 0:00:50]} Qxd6 {[%emt 0:00:15]} 18. Re1 {[%emt 0:02:04]} Qg6+ {[%emt 0:04:39]} 19. Kh2 {[%emt 0:01:47]} Kh7 {[%emt 0:10:05]} 20. Be3 {[%emt 0:00:28]} Qd6+ {[%emt 0:10:47]} 21. Kg2 {[%emt 0:01:50]} ({Better is} 21. f4 $14 Qg6 22. Re2) 21... Qg6+ {[%emt 0:01:38]} 22. Kf1 {[%emt 0:02:56]} Na6 {[%emt 0:03:10]} 23. Qd1 {[%emt 0:01:04]} Re8 $11 {[%emt 0:02:40]} 24. Ke2 {[%emt 0:08:03]} Qg2 {[%emt 0:08:30]} 25. Qd3+ {[%emt 0:02:52]} Kh8 {[%emt 0:00:57]} 26. Kd2 {[%emt 0:00:50]} Nc7 {[%emt 0:02:57]} 27. Qf1 {[%emt 0:02:35]} Qf3 {[%emt 0:02:53]} 28. Qh1 {[%emt 0:02:46]} Qf5 {[%emt 0:02:42]} 29. Re2 {[%emt 0:00:47]} Nd5 {[%emt 0:05:20]} 30. Rae1 {[%emt 0:01:07]} Rfe7 {[%emt 0:07:18]} 31. Qg2 {[%emt 0:01:11]} Nf4 {[%emt 0:03:11]} 32. Bxf4 {[%emt 0:01:51]} Qxf4+ {[%emt 0:02:02]} 33. Re3 {[%emt 0:01:23]} Rf8 {[%emt 0:00:57]} 34. R1e2 {[%emt 0:00:48]} Ref7 {[%emt 0:00:38]} 35. Qg3 {[%emt 0:00:43]} Qf5 {[%emt 0:00:54]} 36. Kc1 {[%emt 0:01:00]} Qd5 {[%emt 0:01:15]} 37. b3 {[%emt 0:02:17]} Rf3 {[%emt 0:02:47]} 38. Rxf3 {[%emt 0:12:11]} Rxf3 {[%emt 0:00:24]} 39. Qb8+ {[%emt 0:01:26]} Kh7 {[%emt 0:00:30]} 40. Kb2 {[%emt 0:05:41]} Qb5 {[%emt 0:09:17]} 41. Qe5 {[%emt 0:41:39]} Qd3 {[%emt 0:41:09]} 42. Qe4+ {[%emt 0:01:59]} Qxe4 {[%emt 0:00:19]} 43. Rxe4 {[%emt 0:00:04]} Rxf2+ {[%emt 0:00:11]} 44. Ka3 {[%emt 0:00:07]} Rf7 {[%emt 0:00:11]} 45. Kb4 {[%emt 0:00:28]} Kg6 {[%emt 0:00:00]} 46. c4 {[%emt 0:00:00]} Rd7 {[%emt 0:00:00]} 47. Kc5 {[%emt 0:00:00]} Kf5 {[%emt 0:00:00]} 48. Rg4 {[%emt 0:00:00]} g5 {[%emt 0:00:00]} 49. Rg1 {[%emt 0:00:00]} b6+ {[%emt 0:00:00]} 50. Kxc6 {[%emt 0:00:00]} Rxd4 {[%emt 0:00:00]} 51. Kb7 {[%emt 0:00:00]} Rd7+ {[%emt 0:00:00]} 52. Kc6 {[%emt 0:00:00]} Rd2 {[%emt 0:00:00]} 53. b4 {[%emt 0:00:00]} Rxa2 {[%emt 0:00:00]} 54. c5 {[%emt 0:00:00]} bxc5 {[%emt 0:00:00]} 55. bxc5 {[%emt 0:00:00]} Rc2 {[%emt 0:00:00]} 56. Kd6 {[%emt 0:00:00]} Rd2+ {[%emt 0:00:00]} 57. Kc7 {[%emt 0:00:00]} h5 {[%emt 0:00:00]} 58. c6 {[%emt 0:00:00]} Rc2 {[%emt 0:00:00]} 59. Kb7 {[%emt 0:00:00]} Rb2+ {[%emt 0:00:00]} 60. Kxa7 {[%emt 0:00:00]} Rc2 {[%emt 0:00:00]} 61. Kb7 {[%emt 0:00:00]} Rb2+ {[%emt 0:00:00]} 62. Kc8 {[%emt 0:00:00]} Rc2 {[%emt 0:00:00]} 63. c7 {[%emt 0:00:00]} g4 {[%emt 0:00:00]} 64. h4 {[%emt 0:00:00]} Kf4 {[%emt 0:00:00]} 65. Kd7 {[%emt 0:00:00]} Rd2+ {[%emt 0:00:34]} 66. Ke6 {[%emt 0:00:00]} Rc2 {[%emt 0:00:23]} 67. Kd7 {[%emt 0:00:00]} Rd2+ {[%emt 0:00:10]} 68. Kc8 {[%emt 0:00:00]} Rc2 {[%emt 0:01:52]} 69. Kd7 {[%emt 0:00:00]} 1/2-1/2

[Event "Fagernes Chess Open 2024"]
[Site "Fagernes"]
[Date "2024.03.30"]
[Round "8.1"]
[White "Strand, Amund Pihl"]
[Black "Rolstad, Morten"]
[Result "1-0"]
[ECO "A28"]
[WhiteElo "1860"]
[BlackElo "1879"]
[Annotator "NA RC COMBH"]
[PlyCount "67"]
[EventDate "2024.03.25"]
[EventType "swiss"]
[EventCountry "NOR"]
[SourceTitle "playchess.com"]
[Source "ChessBase"]
[SourceQuality "1"]
[TimeControl "40/6000+30:2400+30"]

1. c4 {[%emt 0:00:04]} e5 {[%emt 0:00:23]} 2. Nc3 {[%emt 0:00:09]} Nc6 {[%emt 0:00:16]} 3. Nf3 {[%emt 0:00:22]} Nf6 {[%emt 0:00:25]} 4. e3 {[%emt 0:00:07]} Bb4 {[%emt 0:12:28]} 5. Qc2 {[%emt 0:03:13]} d6 {[%emt 0:04:18]} 6. Nd5 {[%emt 0:02:21]} Bc5 {[%emt 0:00:42]} 7. a3 {[%emt 0:04:36]} a5 {[%emt 0:01:42]} 8. Rb1 {[%emt 0:08:44]} O-O {[%emt 0:11:58]} 9. Bd3 {[%emt 0:07:11]} h6 {[%emt 0:07:21]} 10. h3 {[%emt 0:17:26]} Be6 {[%emt 0:01:48]} 11. b4 {[%emt 0:07:11]} axb4 {[%emt 0:08:10]} 12. axb4 $19 {[%emt 0:07:09]} (12. Nxb4 $17 {was called for.} Qd7 13. Nh4) 12... Ba7 {[%emt 0:05:00]} 13. Nxf6+ {[%emt 0:09:58]} Qxf6 {[%emt 0:00:45]} 14. Be4 {[%emt 0:01:28]} Rfb8 {[%emt 0:05:37]} 15. O-O {[%emt 0:01:26]} Ne7 {[%emt 0:05:38]} 16. Bb2 {[%emt 0:02:55]} c6 {[%emt 0:06:51]} 17. d4 {[%emt 0:03:33]} exd4 {[%emt 0:00:23]} 18. Nxd4 {[%emt 0:00:24]} Bxd4 {[%emt 0:09:06]} 19. Bxd4 {[%emt 0:01:27]} Qh4 {[%emt 0:04:30]} 20. f4 {[%emt 0:09:13]} d5 {[%emt 0:03:07]} 21. Bh7+ {[%emt 0:00:55]} Kf8 {[%emt 0:08:06]} 22. f5 {[%emt 0:02:01]} Bd7 {[%emt 0:00:56]} 23. f6 {[%emt 0:03:16]} gxf6 {[%emt 0:02:06]} 24. Rxf6 {[%emt 0:01:37]} Ke8 {[%emt 0:04:44]} 25. Rbf1 {[%emt 0:02:09]} Be6 {[%emt 0:00:19]} 26. Bf5 {[%emt 0:04:09]} Bxf5 {[%emt 0:02:42]} 27. R1xf5 {[%emt 0:01:46]} Nxf5 {[%emt 0:00:09]} 28. Qxf5 {[%emt 0:03:12]} Qe4 {[%emt 0:00:42]} 29. Qh5 {[%emt 0:01:03]} Qb1+ {[%emt 0:02:02]} 30. Kh2 {[%emt 0:00:14]} Qh7 {[%emt 0:00:41]} 31. Rxh6 {[%emt 0:01:26]} Qe4 {[%emt 0:00:22]} 32. Rh8+ {[%emt 0:00:59]} Kd7 {[%emt 0:02:06]} 33. Qxf7+ {[%emt 0:00:13]} Qe7 {[%emt 0:00:46]} 34. Qf5+ {[%emt 0:00:07]} 1-0

[Event "Fagernes Chess Open 2024"]
[Site "Fagernes"]
[Date "2024.03.30"]
[Round "8.2"]
[White "Brattgjerd, August Minh"]
[Black "Hausken, Andreas Skrede"]
[Result "0-1"]
[ECO "D00"]
[WhiteElo "1689"]
[BlackElo "1963"]
[Annotator "RC"]
[PlyCount "54"]
[EventDate "2024.03.25"]
[EventType "swiss"]
[EventCountry "NOR"]
[SourceTitle "playchess.com"]
[Source "ChessBase"]
[SourceQuality "1"]
[TimeControl "40/6000+30:2400+30"]

1. d4 {[%emt 0:00:03]} Nf6 {[%emt 0:08:00]} 2. Bf4 {[%emt 0:00:07]} d5 {[%emt 0:00:03]} 3. e3 {[%emt 0:00:04]} c5 {[%emt 0:00:03]} 4. c3 {[%emt 0:00:03]} Nc6 {[%emt 0:00:03]} 5. Bd3 {[%emt 0:00:15]} Qb6 {[%emt 0:00:20]} 6. Qb3 {[%emt 0:00:02]} c4 {[%emt 0:00:10]} 7. Qxb6 {[%emt 0:00:01]} axb6 {[%emt 0:00:04]} 8. Bc2 {[%emt 0:00:12]} b5 {[%emt 0:00:43]} 9. e4 {[%emt 0:00:05]} Nxe4 {[%emt 0:00:58]} 10. Bxe4 {[%emt 0:00:10]} dxe4 {[%emt 0:00:05]} 11. Nd2 {[%emt 0:00:14]} f6 {[%emt 0:13:54]} 12. Ne2 {[%emt 0:08:55]} e5 {[%emt 0:03:47]} 13. dxe5 {[%emt 0:00:45]} e3 {[%emt 0:01:39]} 14. Bxe3 {[%emt 0:07:07]} Nxe5 {[%emt 0:00:21]} 15. Nc1 {[%emt 0:00:16]} Bf5 {[%emt 0:02:04]} 16. O-O {[%emt 0:00:36]} Be7 {[%emt 0:01:17]} 17. Re1 {[%emt 0:04:31]} O-O {[%emt 0:02:10]} 18. Bd4 {[%emt 0:01:16]} Nc6 {[%emt 0:09:16]} 19. Nf3 {[%emt 0:02:27]} Bd6 {[%emt 0:00:45]} 20. Ne2 {[%emt 0:14:35]} Bg4 {[%emt 0:06:27]} 21. Ng3 {[%emt 0:01:19]} Bxf3 {[%emt 0:00:54]} 22. gxf3 {[%emt 0:00:09]} Nxd4 {[%emt 0:00:16]} 23. cxd4 {[%emt 0:00:59]} Rfe8 {[%emt 0:02:29]} 24. Rxe8+ {[%emt 0:00:54]} Rxe8 {[%emt 0:07:16]} 25. Ne4 {[%emt 0:00:07]} Bf4 {[%emt 0:03:01]} 26. Re1 {[%emt 0:09:48]} Kf7 {[%emt 0:00:25]} 27. a3 {[%emt 0:04:16]} f5 {[%emt 0:00:20]} 0-1

[Event "Fagernes Chess Open 2024"]
[Site "Fagernes"]
[Date "2024.03.30"]
[Round "8.3"]
[White "Kittilsen, Sigurd"]
[Black "Sushrutha, Reddy"]
[Result "1-0"]
[ECO "B78"]
[WhiteElo "1910"]
[BlackElo "1707"]
[Annotator "NA RC"]
[PlyCount "123"]
[EventDate "2024.03.25"]
[EventType "swiss"]
[EventCountry "NOR"]
[SourceTitle "playchess.com"]
[Source "ChessBase"]
[SourceQuality "1"]
[TimeControl "40/6000+30:2400+30"]

1. e4 {[%emt 0:00:04]} c5 {[%emt 0:01:15]} 2. Nf3 {[%emt 0:00:11]} d6 {[%emt 0:00:02]} 3. d4 {[%emt 0:00:08]} cxd4 {[%emt 0:00:09]} 4. Nxd4 {[%emt 0:00:07]} Nf6 {[%emt 0:00:06]} 5. Nc3 {[%emt 0:00:08]} g6 {[%emt 0:00:07]} 6. Be3 {[%emt 0:00:11]} Bg7 {[%emt 0:00:02]} 7. f3 {[%emt 0:00:12]} O-O {[%emt 0:00:06]} 8. Qd2 {[%emt 0:00:09]} Nc6 {[%emt 0:00:08]} 9. Bc4 {[%emt 0:00:13]} Bd7 {[%emt 0:00:02]} 10. O-O-O {[%emt 0:00:15]} Rc8 {[%emt 0:00:01]} 11. Bb3 {[%emt 0:00:14]} Ne5 {[%emt 0:00:02]} 12. Kb1 {[%emt 0:00:13]} Nc4 {[%emt 0:00:08]} 13. Bxc4 {[%emt 0:00:11]} Rxc4 {[%emt 0:00:11]} 14. g4 {[%emt 0:00:12]} b5 {[%emt 0:05:33]} 15. g5 {[%emt 0:01:44] B78: Sizilianisch (Moderne Drachen-Variante).} Nh5 {[%emt 0:02:12]} 16. b3 {[%emt 0:01:43]} Rc8 {[%emt 0:05:40]} 17. Ndxb5 {[%emt 0:02:30]} Qa5 {[%emt 0:00:42]} 18. Nd5 {[%emt 0:01:25]} Qxb5 {[%emt 0:02:16]} 19. Nxe7+ {[%emt 0:00:25]} Kh8 {[%emt 0:00:16]} 20. Nxc8 {[%emt 0:00:33]} Rxc8 {[%emt 0:02:19]} 21. c4 {[%emt 0:10:30]} Rxc4 {[%emt 0:14:33]} 22. Qxd6 {[%emt 0:04:12]} Rc3 {[%emt 0:03:03]} 23. Bd4 {[%emt 0:11:17]} (23. Qxd7 {leads to mate.} Rxb3+ 24. Kc1 Rb1+ (24... Rc3+ {is a self mate.} 25. Kd2 Qb2+ 26. Ke1 Rxe3+ 27. Kf1 Rxf3+ 28. Kg1 Qf2#) 25. Kc2 Rb2+ 26. Kc1 Qc4#) 23... Rxb3+ {[%emt 0:02:47]} 24. Ka1 {[%emt 0:01:20]} Kg8 {[%emt 0:03:13]} 25. Bxg7 {[%emt 0:06:42]} Kxg7 {[%emt 0:00:24]} 26. axb3 {[%emt 0:11:39]} Be6 $18 {[%emt 0:01:10]} 27. Qd4+ {[%emt 0:09:38]} Kg8 {[%emt 0:01:07]} 28. Qc3 {[%emt 0:05:58]} Qxg5 {[%emt 0:00:52]} 29. Rhg1 {[%emt 0:04:19]} Qe7 {[%emt 0:00:18]} 30. Qa5 {[%emt 0:00:48]} Qf6+ {[%emt 0:00:49]} 31. Ka2 {[%emt 0:05:54]} Qxf3 {[%emt 0:01:18]} 32. Rd8+ {[%emt 0:01:00]} Kg7 {[%emt 0:00:36]} 33. Qe5+ {[%emt 0:01:52]} Nf6 {[%emt 0:02:37]} 34. Rb1 {[%emt 0:07:27]} Qe2+ {[%emt 0:02:47]} 35. Qb2 {[%emt 0:03:50]} Qxe4 {[%emt 0:03:05]} 36. Rbd1 {[%emt 0:03:58]} Qa4+ {[%emt 0:00:41]} 37. Kb1 {[%emt 0:02:49]} Bf5+ {[%emt 0:09:15]} 38. Kc1 {[%emt 0:13:30]} Qc6+ {[%emt 0:01:08]} 39. Kd2 {[%emt 0:00:05]} Kh6 {[%emt 0:02:06]} 40. Qc1 {[%emt 0:01:18]} Qf3 {[%emt 0:01:52]} 41. Qc4 {[%emt 0:19:18]} Ne4+ {[%emt 0:03:33]} 42. Kc1 {[%emt 0:00:18]} Qe3+ {[%emt 0:19:57]} 43. Kb2 {[%emt 0:01:13]} Be6 {[%emt 0:00:44]} 44. Qc1 {[%emt 0:01:11]} Qg5 {[%emt 0:03:14]} 45. Qxg5+ {[%emt 0:04:35]} Kxg5 {[%emt 0:00:16]} 46. Ra8 {[%emt 0:00:25]} f5 {[%emt 0:01:55]} 47. Rxa7 {[%emt 0:00:15]} f4 {[%emt 0:00:18]} 48. b4 {[%emt 0:03:42]} h5 {[%emt 0:00:41]} 49. b5 {[%emt 0:02:45]} f3 {[%emt 0:01:58]} 50. Rc7 {[%emt 0:03:20]} f2 {[%emt 0:00:39]} 51. b6 {[%emt 0:01:49]} Nd6 {[%emt 0:02:48]} 52. Rf1 {[%emt 0:03:23]} Nc4+ {[%emt 0:00:36]} 53. Rxc4 {[%emt 0:00:34]} Bxc4 {[%emt 0:00:02]} 54. Rxf2 {[%emt 0:02:29]} Bd5 {[%emt 0:00:12]} 55. Rd2 {[%emt 0:00:37]} Ba8 {[%emt 0:01:29]} 56. Rd8 {[%emt 0:00:37]} Bh1 {[%emt 0:00:29]} 57. Kc3 {[%emt 0:01:21]} Kh4 {[%emt 0:00:05]} 58. Kc4 {[%emt 0:01:00]} g5 {[%emt 0:00:23]} 59. Rd5 {[%emt 0:00:21]} g4 {[%emt 0:01:19]} 60. b7 {[%emt 0:00:32]} g3 {[%emt 0:00:14]} 61. hxg3+ {[%emt 0:00:25]} Kxg3 {[%emt 0:00:02]} 62. b8=Q+ {[%emt 0:00:32]} 1-0

[Event "Fagernes Chess Open 2024"]
[Site "Fagernes"]
[Date "2024.03.30"]
[Round "8.4"]
[White "Nordahl, Frederik"]
[Black "Nordahl, Christine"]
[Result "0-1"]
[ECO "B30"]
[WhiteElo "1675"]
[BlackElo "1673"]
[Annotator "NA COMBH"]
[PlyCount "106"]
[EventDate "2024.03.25"]
[EventType "swiss"]
[EventCountry "NOR"]
[SourceTitle "playchess.com"]
[Source "ChessBase"]
[SourceQuality "1"]
[TimeControl "40/6000+30:2400+30"]

1. e4 {[%emt 0:00:01]} c5 {[%emt 0:00:18]} 2. Nf3 {[%emt 0:00:04]} Nc6 {[%emt 0:00:26]} 3. b4 {[%emt 0:00:35]} Nxb4 {[%emt 0:01:48]} 4. c3 {[%emt 0:00:06]} Nc6 {[%emt 0:00:26]} 5. d4 {[%emt 0:00:06]} d5 {[%emt 0:03:08]} 6. exd5 {[%emt 0:01:09]} Qxd5 {[%emt 0:01:17]} 7. c4 {[%emt 0:01:19]} Qe4+ {[%emt 0:02:24]} 8. Be2 {[%emt 0:07:11]} Nxd4 {[%emt 0:01:20]} 9. Nc3 {[%emt 0:00:15]} Nxf3+ {[%emt 0:02:54]} 10. gxf3 {[%emt 0:00:06]} Qd4 {[%emt 0:04:44]} 11. Qb3 {[%emt 0:01:27]} e6 {[%emt 0:09:59]} 12. Be3 {[%emt 0:00:12]} Qd8 {[%emt 0:01:00]} 13. Rd1 {[%emt 0:00:08]} Qb6 {[%emt 0:01:30]} 14. Qa4+ {[%emt 0:00:38]} Qc6 {[%emt 0:00:20]} 15. Nb5 {[%emt 0:00:16]} Bd7 {[%emt 0:03:54]} 16. Bf4 {[%emt 0:00:10]} Nf6 {[%emt 0:03:25]} 17. Qc2 {[%emt 0:01:31]} Nh5 {[%emt 0:06:05]} 18. Be5 {[%emt 0:05:03]} f6 {[%emt 0:00:20]} 19. Nc7+ {[%emt 0:00:38]} Kf7 {[%emt 0:00:17]} 20. Nxa8 {[%emt 0:00:57]} fxe5 {[%emt 0:00:16]} 21. Qd2 {[%emt 0:00:09]} Nf6 {[%emt 0:00:36]} 22. Qa5 {[%emt 0:02:09]} Qa4 {[%emt 0:03:15]} 23. Qxa4 {[%emt 0:10:07]} Bxa4 {[%emt 0:00:13]} 24. Rb1 {[%emt 0:00:07]} Bc6 {[%emt 0:03:02]} 25. Nc7 {[%emt 0:00:48]} a6 {[%emt 0:00:26]} 26. Na8 {[%emt 0:00:09]} e4 {[%emt 0:01:29]} 27. f4 {[%emt 0:00:52]} e3 {[%emt 0:02:29]} 28. f3 {[%emt 0:01:07]} Bd6 {[%emt 0:00:07]} 29. Nb6 {[%emt 0:00:34]} Bxf4 {[%emt 0:00:40]} 30. Bd1 {[%emt 0:00:31]} Ng4 {[%emt 0:02:15]} 31. Na4 {[%emt 0:03:15]} Nxh2 {[%emt 0:02:08]} 32. Nxc5 {[%emt 0:00:17]} Nxf3+ {[%emt 0:01:12]} 33. Bxf3 {[%emt 0:00:09]} Bxf3 {[%emt 0:00:04]} 34. Rxb7+ {[%emt 0:11:29]} Bxb7 {[%emt 0:00:16]} 35. Nxb7 {[%emt 0:00:05]} Rb8 {[%emt 0:00:11]} 36. Rf1 {[%emt 0:00:08]} g5 {[%emt 0:01:26]} 37. Nc5 {[%emt 0:01:22]} Rb1+ {[%emt 0:01:12]} 38. Ke2 {[%emt 0:00:06]} Rb2+ {[%emt 0:00:08]} 39. Kf3 {[%emt 0:00:36]} Rxa2 {[%emt 0:00:08]} 40. Nd3 {[%emt 0:00:22]} Rd2 {[%emt 0:02:54]} 41. Ke4 {[%emt 0:40:23]} Ke7 {[%emt 0:40:58]} 42. Rh1 {[%emt 0:00:28]} Rh2 {[%emt 0:00:29]} 43. Ra1 {[%emt 0:00:06]} Rd2 {[%emt 0:04:22]} 44. Rh1 {[%emt 0:00:21]} Rh2 {[%emt 0:02:15]} 45. Ra1 {[%emt 0:00:07]} Rh3 {[%emt 0:00:17]} 46. Rxa6 {[%emt 0:00:19]} e2 {[%emt 0:00:10]} 47. Ra7+ {[%emt 0:00:23]} Kf6 {[%emt 0:00:11]} 48. Ne1 {[%emt 0:01:55]} Rh1 {[%emt 0:01:17]} 49. Nd3 {[%emt 0:00:46]} Rd1 {[%emt 0:00:19]} 50. Kf3 {[%emt 0:00:14]} Rxd3+ {[%emt 0:00:21]} 51. Kxe2 {[%emt 0:00:07]} Rd2+ {[%emt 0:00:49]} 52. Kf3 {[%emt 0:00:15]} h5 {[%emt 0:00:52]} 53. c5 {[%emt 0:00:24]} Rc2 {[%emt 0:00:21]} 0-1

[Event "Fagernes Chess Open 2024"]
[Site "Fagernes"]
[Date "2024.03.30"]
[Round "8.5"]
[White "Yilmaz, Kazim"]
[Black "Andersen, Dag"]
[Result "1/2-1/2"]
[ECO "B15"]
[WhiteElo "1805"]
[BlackElo "1899"]
[Annotator "NA RC COMBH"]
[PlyCount "36"]
[EventDate "2024.03.25"]
[EventType "swiss"]
[EventCountry "NOR"]
[SourceTitle "playchess.com"]
[Source "ChessBase"]
[SourceQuality "1"]
[TimeControl "40/6000+30:2400+30"]

1. Nf3 {[%emt 0:00:01]} d5 {[%emt 0:00:16]} 2. Nc3 {[%emt 0:00:05]} c6 {[%emt 0:00:47]} 3. e4 {[%emt 0:00:06]} dxe4 {[%emt 0:02:44]} 4. Nxe4 {[%emt 0:00:06]} Nf6 {[%emt 0:00:21]} 5. Nxf6+ {[%emt 0:00:07]} exf6 {[%emt 0:00:27]} 6. Bc4 {[%emt 0:00:07]} Qe7+ {[%emt 0:04:18]} 7. Qe2 {[%emt 0:00:07]} Qxe2+ {[%emt 0:01:25]} 8. Bxe2 {[%emt 0:00:06]} Bd6 {[%emt 0:00:27]} 9. O-O {[%emt 0:00:20]} O-O {[%emt 0:00:31]} 10. d4 {[%emt 0:01:13]} Bf5 {[%emt 0:03:21]} 11. c3 {[%emt 0:03:15]} Nd7 {[%emt 0:00:43]} 12. Be3 {[%emt 0:01:31]} Rfe8 {[%emt 0:00:40]} 13. Rfe1 {[%emt 0:01:07]} Nf8 {[%emt 0:02:02]} 14. Nh4 {[%emt 0:01:27]} Be4 {[%emt 0:03:17]} 15. Bf3 {[%emt 0:02:00]} Bxf3 {[%emt 0:03:31]} 16. Nxf3 {[%emt 0:00:07]} Ng6 {[%emt 0:00:40]} 17. g3 {[%emt 0:01:33]} a6 {[%emt 0:08:43]} 18. Bd2 {[%emt 0:00:11]} Kf8 {[%emt 0:04:21]} 1/2-1/2

[Event "Fagernes Chess Open 2024"]
[Site "Fagernes"]
[Date "2024.03.30"]
[Round "8.6"]
[White "Halvorsen, Benjamin"]
[Black "Damiano, Sophie"]
[Result "1-0"]
[ECO "B10"]
[WhiteElo "1848"]
[BlackElo "1691"]
[Annotator "NA RC COMBH"]
[PlyCount "95"]
[EventDate "2024.03.25"]
[EventType "swiss"]
[EventCountry "NOR"]
[SourceTitle "playchess.com"]
[Source "ChessBase"]
[SourceQuality "1"]
[TimeControl "40/6000+30:2400+30"]

1. e4 {[%emt 0:00:35]} c6 {[%emt 0:00:29]} 2. Nf3 {[%emt 0:00:38]} d5 {[%emt 0:00:21]} 3. exd5 {[%emt 0:00:05]} cxd5 {[%emt 0:00:05]} 4. Ne5 {[%emt 0:00:28]} Nf6 {[%emt 0:02:05]} 5. d4 {[%emt 0:00:13]} Bf5 {[%emt 0:02:03]} 6. Bb5+ {[%emt 0:00:07] B10: Caro-Kann: 2 d3 and 2 c4.} Nbd7 {[%emt 0:00:15]} 7. Nc3 {[%emt 0:00:23]} Qa5 {[%emt 0:03:11]} 8. Bd2 {[%emt 0:03:34]} Rc8 {[%emt 0:01:25]} 9. g4 {[%emt 0:05:28]} Be6 {[%emt 0:10:02]} 10. g5 {[%emt 0:03:40]} Ne4 {[%emt 0:03:29]} 11. Bxd7+ {[%emt 0:00:42]} Bxd7 {[%emt 0:00:48]} 12. Nxe4 {[%emt 0:00:09]} Qa4 {[%emt 0:00:45]} 13. Nxd7 {[%emt 0:15:35]} Kxd7 {[%emt 0:14:42]} 14. Nc3 {[%emt 0:00:25]} Qxd4 {[%emt 0:00:34]} 15. Be3 {[%emt 0:00:12]} Qxd1+ {[%emt 0:02:32]} 16. Rxd1 {[%emt 0:00:02]} e6 {[%emt 0:00:32]} 17. Bxa7 {[%emt 0:01:19]} Bb4 {[%emt 0:00:46]} 18. Bd4 {[%emt 0:00:21]} Rhg8 {[%emt 0:04:06]} 19. f4 {[%emt 0:09:56]} g6 {[%emt 0:01:07]} 20. Be5 {[%emt 0:01:56]} Rc6 {[%emt 0:01:43]} 21. a3 {[%emt 0:00:24]} Ba5 {[%emt 0:01:03]} 22. O-O {[%emt 0:02:19]} Rgc8 {[%emt 0:00:59]} 23. Nxd5 {[%emt 0:01:12]} Ke8 {[%emt 0:06:05]} 24. Nf6+ $18 {[%emt 0:00:01]} Kf8 {[%emt 0:04:19]} 25. Nxh7+ {[%emt 0:00:19]} Ke7 {[%emt 0:01:46]} 26. c3 {[%emt 0:00:05]} Bb6+ {[%emt 0:00:58]} 27. Kg2 {[%emt 0:00:10]} Bc7 {[%emt 0:01:32]} 28. Bxc7 {[%emt 0:00:56]} R6xc7 {[%emt 0:02:05]} 29. Nf6 {[%emt 0:00:05]} b6 {[%emt 0:00:49]} 30. Rd4 {[%emt 0:00:08]} Rb8 {[%emt 0:01:16]} 31. Rfd1 {[%emt 0:00:02]} Rcb7 {[%emt 0:01:30]} 32. Rd7+ {[%emt 0:00:01]} Rxd7 {[%emt 0:00:30]} 33. Rxd7+ {[%emt 0:00:01]} Kf8 {[%emt 0:00:28]} 34. Ng4 {[%emt 0:00:02]} Re8 {[%emt 0:00:43]} 35. Ne5 {[%emt 0:00:03]} Re7 {[%emt 0:00:37]} 36. Rxe7 {[%emt 0:00:01]} Kxe7 {[%emt 0:00:13]} 37. a4 {[%emt 0:00:03]} Ke8 {[%emt 0:00:43]} 38. Nc4 {[%emt 0:00:02]} b5 {[%emt 0:00:06]} 39. Nd6+ {[%emt 0:00:03]} Ke7 {[%emt 0:00:10]} 40. Nxb5 {[%emt 0:00:01]} Ke8 {[%emt 0:00:22]} 41. a5 {[%emt 0:40:01]} Kd8 {[%emt 0:40:17]} 42. a6 {[%emt 0:00:00]} Kc8 {[%emt 0:01:57]} 43. Nd6+ {[%emt 0:00:01]} Kb8 {[%emt 0:00:11]} 44. b4 {[%emt 0:00:00]} Ka7 {[%emt 0:00:07]} 45. b5 {[%emt 0:00:01]} e5 {[%emt 0:00:22]} 46. fxe5 {[%emt 0:00:08]} f5 {[%emt 0:00:39]} 47. gxf6 {[%emt 0:00:01]} g5 {[%emt 0:00:10]} 48. f7 {[%emt 0:00:01]} 1-0